[Event "Titled Tuesday Blitz November 08 Late 2022"]
[White "Ladan, Nicholas"]
[Black "Al-Tarboush, Ward"]
[WhiteFideId "30918855"]
[BlackFideId "7601450"]
[WhiteElo "2167"]
[BlackElo "2273"]
[Result "1-0"]
[Round "10"]
[TimeControl "180+1"]
[Date "2022.11.09"]
[WhiteClock "0:00:08"]
[BlackClock "0:00:05"]

1. b3 {[%clk 0:03:00]}  e5 {[%clk 0:02:59]} 2. Bb2 {[%clk 0:03:01]}  Nc6 {[%clk 0:02:59]} 3. c4 {[%clk 0:03:01]}  Nf6 {[%clk 0:02:59]} 4. e3 {[%clk 0:03:00]}  Be7 {[%clk 0:02:59]} 5. d4 {[%clk 0:02:53]}  exd4 {[%clk 0:02:59]} 6. exd4 {[%clk 0:02:54]}  d5 {[%clk 0:02:59]} 7. Nf3 {[%clk 0:02:52]}  O-O {[%clk 0:02:59]} 8. Be2 {[%clk 0:02:52]}  Bg4 {[%clk 0:02:58]} 9. Nbd2 {[%clk 0:02:48]}  Re8 {[%clk 0:02:58]} 10. O-O {[%clk 0:02:47]}  Ne4 {[%clk 0:02:56]} 11. Nxe4 {[%clk 0:02:44]}  dxe4 {[%clk 0:02:56]} 12. Ne5 {[%clk 0:02:41]}  Nxe5 {[%clk 0:02:51]} 13. Bxg4 {[%clk 0:02:31]}  Nxg4 {[%clk 0:02:52]} 14. Qxg4 {[%clk 0:02:31]}  Bf6 {[%clk 0:02:47]} 15. Rad1 {[%clk 0:02:27]}  Qd6 {[%clk 0:02:42]} 16. Rfe1 {[%clk 0:02:23]}  Qe6 {[%clk 0:02:33]} 17. Qxe6 {[%clk 0:02:17]}  Rxe6 {[%clk 0:02:34]} 18. d5 {[%clk 0:02:17]}  Re7 {[%clk 0:02:34]} 19. Bxf6 {[%clk 0:02:16]}  gxf6 {[%clk 0:02:35]} 20. d6 {[%clk 0:02:06]}  cxd6 {[%clk 0:02:33]} 21. Rxd6 {[%clk 0:02:07]}  f5 {[%clk 0:02:27]} 22. g3 {[%clk 0:01:54]}  Kh8 {[%clk 0:02:23]} 23. Rd5 {[%clk 0:01:51]}  f4 {[%clk 0:02:20]} 24. gxf4 {[%clk 0:01:51]}  Rg8+ {[%clk 0:02:20]} 25. Rg5 {[%clk 0:01:49]}  f5 {[%clk 0:02:21]} 26. Rd1 {[%clk 0:01:45]}  Rxg5+ {[%clk 0:02:04]} 27. fxg5 {[%clk 0:01:46]}  Kg7 {[%clk 0:02:02]} 28. Kg2 {[%clk 0:01:37]}  Kg6 {[%clk 0:01:57]} 29. h4 {[%clk 0:01:35]}  f4 {[%clk 0:01:57]} 30. Rd6+ {[%clk 0:01:29]}  Kf5 {[%clk 0:01:57]} 31. f3 {[%clk 0:01:03]}  e3 {[%clk 0:01:51]} 32. Rd5+ {[%clk 0:00:54]}  Kg6 {[%clk 0:01:33]} 33. Kf1 {[%clk 0:00:54]}  Kh5 {[%clk 0:01:33]} 34. Rf5 {[%clk 0:00:47]}  Kxh4 {[%clk 0:01:31]} 35. Rxf4+ {[%clk 0:00:47]}  Kxg5 {[%clk 0:01:32]} 36. Rg4+ {[%clk 0:00:41]}  Kf5 {[%clk 0:01:30]} 37. Ke2 {[%clk 0:00:42]}  h5 {[%clk 0:01:28]} 38. Rh4 {[%clk 0:00:40]}  Kg5 {[%clk 0:01:28]} 39. Rd4 {[%clk 0:00:30]}  h4 {[%clk 0:01:26]} 40. Rd8 {[%clk 0:00:23]}  Kf4 {[%clk 0:01:12]} 41. Rg8 {[%clk 0:00:21]}  Rh7 {[%clk 0:01:02]} 42. Rg4+ {[%clk 0:00:20]}  Kf5 {[%clk 0:01:02]} 43. Kxe3 {[%clk 0:00:20]}  h3 {[%clk 0:01:02]} 44. Rg1 {[%clk 0:00:20]}  h2 {[%clk 0:00:51]} 45. Rh1 {[%clk 0:00:20]}  Ke5 {[%clk 0:00:48]} 46. Kf2 {[%clk 0:00:16]}  Kf4 {[%clk 0:00:47]} 47. Kg2 {[%clk 0:00:13]}  Rg7+ {[%clk 0:00:18]} 48. Kxh2 {[%clk 0:00:13]}  Kxf3 {[%clk 0:00:19]} 49. Rf1+ {[%clk 0:00:11]}  Ke2 {[%clk 0:00:19]} 50. Rf5 {[%clk 0:00:09]}  Kd3 {[%clk 0:00:18]} 51. Ra5 {[%clk 0:00:07]}  a6 {[%clk 0:00:16]} 52. c5 {[%clk 0:00:04]}  Rc7 {[%clk 0:00:10]} 53. b4 {[%clk 0:00:03]}  Kc4 {[%clk 0:00:09]} 54. a3 {[%clk 0:00:03]}  Rc6 {[%clk 0:00:02]} 55. Kg3 {[%clk 0:00:04]}  Rf6 {[%clk 0:00:01]} 56. Kg4 {[%clk 0:00:04]}  Kd4 {[%clk 0:00:01]} 57. Kg5 {[%clk 0:00:04]}  Rc6 {[%clk 0:00:02]} 58. Kf5 {[%clk 0:00:04]}  Kd5 {[%clk 0:00:02]} 59. Kf4 {[%clk 0:00:05]}  Kd4 {[%clk 0:00:02]} 60. Ra4 {[%clk 0:00:04]}  Kc4 {[%clk 0:00:02]} 61. Ke5 {[%clk 0:00:04]}  Kb5 {[%clk 0:00:02]} 62. Ra5+ {[%clk 0:00:05]}  Kc4 {[%clk 0:00:02]} 63. Ke4 {[%clk 0:00:05]}  Kb3 {[%clk 0:00:03]} 64. Kd5 {[%clk 0:00:06]}  Rh6 {[%clk 0:00:02]} 65. Kd4 {[%clk 0:00:05]}  Rc6 {[%clk 0:00:02]} 66. Ke5 {[%clk 0:00:05]}  Rh6 {[%clk 0:00:02]} 67. Kd5 {[%clk 0:00:06]}  Rg6 {[%clk 0:00:02]} 68. b5 {[%clk 0:00:05]}  axb5 {[%clk 0:00:01]} 69. Rxb5+ {[%clk 0:00:06]}  Kxa3 {[%clk 0:00:01]} 70. Rxb7 {[%clk 0:00:06]}  Rg5+ {[%clk 0:00:01]} 71. Kd6 {[%clk 0:00:07]}  Rg6+ {[%clk 0:00:01]} 72. Kd7 {[%clk 0:00:07]}  Rg7+ {[%clk 0:00:02]} 73. Kc6 {[%clk 0:00:07]}  Rg6+ {[%clk 0:00:02]} 74. Kb5 {[%clk 0:00:08]}  Rg1 {[%clk 0:00:03]} 75. c6 {[%clk 0:00:08]}  Rb1+ {[%clk 0:00:03]} 76. Ka6 {[%clk 0:00:08]}  Rc1 {[%clk 0:00:04]} 77. Rb6 {[%clk 0:00:08]}  Ka4 {[%clk 0:00:05]} 78. Kb7 {[%clk 0:00:08]}  Ka5 {[%clk 0:00:05]} 79. c7 {[%clk 0:00:08]}  Rc2 {[%clk 0:00:05]} 80. Rb3 {[%clk 0:00:08]} 1-0


[Site "https://www.chess.com"]

[Event "Titled Tuesday Blitz November 08 Late 2022"]
[White "Leiva, Gianmarco"]
[Black "Hansen, Eric"]
[WhiteFideId "3804399"]
[BlackFideId "2606771"]
[WhiteElo "2286"]
[BlackElo "2568"]
[Result "0-1"]
[Round "10"]
[TimeControl "180+1"]
[Date "2022.11.08"]
[WhiteClock "0:00:01"]
[BlackClock "0:00:40"]

1. e4 {[%clk 0:03:00]}  c5 {[%clk 0:03:00]} 2. Nf3 {[%clk 0:03:00]}  e6 {[%clk 0:03:00]} 3. d3 {[%clk 0:03:00]}  Nc6 {[%clk 0:03:00]} 4. g3 {[%clk 0:03:00]}  d5 {[%clk 0:03:00]} 5. Nbd2 {[%clk 0:03:00]}  Bd6 {[%clk 0:03:01]} 6. Bg2 {[%clk 0:02:58]}  Nge7 {[%clk 0:03:01]} 7. O-O {[%clk 0:02:58]}  O-O {[%clk 0:03:02]} 8. c3 {[%clk 0:02:58]}  b5 {[%clk 0:03:02]} 9. Re1 {[%clk 0:02:56]}  Rb8 {[%clk 0:02:52]} 10. e5 {[%clk 0:02:53]}  Bc7 {[%clk 0:02:52]} 11. Nb3 {[%clk 0:02:53]}  c4 {[%clk 0:02:49]} 12. Nc5 {[%clk 0:02:42]}  Bb6 {[%clk 0:02:42]} 13. Be3 {[%clk 0:02:14]}  Nf5 {[%clk 0:02:40]} 14. Bg5 {[%clk 0:02:07]}  Qc7 {[%clk 0:02:27]} 15. b4 {[%clk 0:01:59]}  cxb3 {[%clk 0:02:19]} 16. Nxb3 {[%clk 0:01:59]}  h6 {[%clk 0:02:14]} 17. Bf4 {[%clk 0:01:56]}  a5 {[%clk 0:02:10]} 18. Qd2 {[%clk 0:01:40]}  a4 {[%clk 0:01:52]} 19. Nc1 {[%clk 0:01:39]}  b4 {[%clk 0:01:43]} 20. cxb4 {[%clk 0:01:08]}  Nxb4 {[%clk 0:01:35]} 21. Ne2 {[%clk 0:01:08]}  Qc2 {[%clk 0:01:28]} 22. Red1 {[%clk 0:00:19]}  Ba6 {[%clk 0:01:12]} 23. Qxc2 {[%clk 0:00:17]}  Nxc2 {[%clk 0:01:12]} 24. Rab1 {[%clk 0:00:16]}  a3 {[%clk 0:01:08]} 25. Bf1 {[%clk 0:00:06]}  g5 {[%clk 0:00:59]} 26. Bc1 {[%clk 0:00:05]}  Rfc8 {[%clk 0:00:56]} 27. g4 {[%clk 0:00:04]}  Ne7 {[%clk 0:00:55]} 28. h4 {[%clk 0:00:04]}  gxh4 {[%clk 0:00:45]} 29. Bxh6 {[%clk 0:00:05]}  Ng6 {[%clk 0:00:43]} 30. Bg5 {[%clk 0:00:04]}  Bxd3 {[%clk 0:00:40]} 31. Rxd3 {[%clk 0:00:03]}  Bxf2+ {[%clk 0:00:40]} 32. Kxf2 {[%clk 0:00:03]}  Rxb1 {[%clk 0:00:40]} 33. Nxh4 {[%clk 0:00:02]}  Nxe5 {[%clk 0:00:40]} 34. Rb3 {[%clk 0:00:01]} 0-1


[Site "https://www.chess.com"]

[Event "Titled Tuesday Blitz November 08 Late 2022"]
[White "Makaraci, Tunahan"]
[Black "Martinez Reyes, Pedro Ramon"]
[WhiteFideId "6356559"]
[BlackFideId "3901807"]
[WhiteElo "2161"]
[BlackElo "2354"]
[Result "1-0"]
[Round "10"]
[TimeControl "180+1"]
[Date "2022.11.09"]
[WhiteClock "0:00:38"]
[BlackClock "0:01:38"]

1. e4 {[%clk 0:03:00]}  e6 {[%clk 0:02:57]} 2. d4 {[%clk 0:03:00]}  d5 {[%clk 0:02:58]} 3. Nd2 {[%clk 0:03:00]}  Nf6 {[%clk 0:02:57]} 4. e5 {[%clk 0:03:00]}  Ne4 {[%clk 0:02:58]} 5. Ngf3 {[%clk 0:02:59]}  c5 {[%clk 0:02:57]} 6. c3 {[%clk 0:02:55]}  Nc6 {[%clk 0:02:56]} 7. Bb5 {[%clk 0:02:55]}  Qb6 {[%clk 0:02:54]} 8. Bxc6+ {[%clk 0:02:55]}  bxc6 {[%clk 0:02:55]} 9. O-O {[%clk 0:02:54]}  Ba6 {[%clk 0:02:55]} 10. Re1 {[%clk 0:02:54]}  Nxd2 {[%clk 0:02:54]} 11. Bxd2 {[%clk 0:02:53]}  cxd4 {[%clk 0:02:49]} 12. cxd4 {[%clk 0:02:52]}  c5 {[%clk 0:02:50]} 13. Bc3 {[%clk 0:02:49]}  Be7 {[%clk 0:02:48]} 14. dxc5 {[%clk 0:02:43]}  Bxc5 {[%clk 0:02:49]} 15. Bd4 {[%clk 0:02:44]}  O-O {[%clk 0:02:46]} 16. Bxc5 {[%clk 0:02:42]}  Qxc5 {[%clk 0:02:46]} 17. Rc1 {[%clk 0:02:43]}  Qb6 {[%clk 0:02:45]} 18. b3 {[%clk 0:02:42]}  Rfc8 {[%clk 0:02:45]} 19. Qd4 {[%clk 0:02:42]}  Qa5 {[%clk 0:02:45]} 20. a4 {[%clk 0:02:15]}  h6 {[%clk 0:02:45]} 21. h4 {[%clk 0:02:11]}  Kh7 {[%clk 0:02:30]} 22. Qf4 {[%clk 0:02:10]}  Kg8 {[%clk 0:02:23]} 23. Rxc8+ {[%clk 0:02:09]}  Rxc8 {[%clk 0:02:23]} 24. Rc1 {[%clk 0:02:10]}  Rxc1+ {[%clk 0:02:19]} 25. Qxc1 {[%clk 0:02:11]}  Qb4 {[%clk 0:02:18]} 26. Qc6 {[%clk 0:02:05]}  Bd3 {[%clk 0:02:06]} 27. Qe8+ {[%clk 0:02:01]}  Kh7 {[%clk 0:02:04]} 28. Qxf7 {[%clk 0:01:57]}  Bf5 {[%clk 0:02:05]} 29. Qxa7 {[%clk 0:01:50]}  Qxb3 {[%clk 0:02:04]} 30. Nd4 {[%clk 0:01:33]}  Qd1+ {[%clk 0:02:03]} 31. Kh2 {[%clk 0:01:33]}  Qg4 {[%clk 0:02:04]} 32. Nf3 {[%clk 0:00:58]}  Be4 {[%clk 0:01:58]} 33. Qe3 {[%clk 0:00:45]}  Bxf3 {[%clk 0:01:58]} 34. Qxf3 {[%clk 0:00:45]}  Qxh4+ {[%clk 0:01:58]} 35. Qh3 {[%clk 0:00:45]}  Qf4+ {[%clk 0:01:55]} 36. Kg1 {[%clk 0:00:42]}  Qc1+ {[%clk 0:01:54]} 37. Kh2 {[%clk 0:00:42]}  Qf4+ {[%clk 0:01:55]} 38. Kg1 {[%clk 0:00:40]}  Qxe5 {[%clk 0:01:55]} 39. Qd3+ {[%clk 0:00:40]}  Kg8 {[%clk 0:01:53]} 40. Qb5 {[%clk 0:00:39]}  Qe1+ {[%clk 0:01:47]} 41. Kh2 {[%clk 0:00:39]}  Qxf2 {[%clk 0:01:41]} 42. a5 {[%clk 0:00:39]}  Qh4+ {[%clk 0:01:40]} 43. Kg1 {[%clk 0:00:39]}  d4 {[%clk 0:01:37]} 44. a6 {[%clk 0:00:39]}  Qe1+ {[%clk 0:01:37]} 45. Kh2 {[%clk 0:00:39]}  Qe5+ {[%clk 0:01:38]} 46. Qxe5 {[%clk 0:00:38]} 1-0


[Site "https://www.chess.com"]

[Event "Titled Tuesday Blitz November 08 Late 2022"]
[White "Martic, Ivan"]
[Black "Yuan, Qingyu"]
[WhiteFideId "929301"]
[BlackFideId "8609772"]
[WhiteElo "2355"]
[BlackElo "2359"]
[Result "0-1"]
[Round "10"]
[TimeControl "180+1"]
[Date "2022.11.09"]
[WhiteClock "0:00:13"]
[BlackClock "0:00:12"]

1. d4 {[%clk 0:03:00]}  d5 {[%clk 0:02:59]} 2. Bf4 {[%clk 0:03:00]}  Nf6 {[%clk 0:03:00]} 3. e3 {[%clk 0:02:59]}  e6 {[%clk 0:03:00]} 4. Bd3 {[%clk 0:02:55]}  Bd6 {[%clk 0:02:59]} 5. Bg3 {[%clk 0:02:54]}  O-O {[%clk 0:02:53]} 6. c3 {[%clk 0:02:48]}  c5 {[%clk 0:02:51]} 7. Nd2 {[%clk 0:02:46]}  Qc7 {[%clk 0:02:52]} 8. Bxd6 {[%clk 0:02:44]}  Qxd6 {[%clk 0:02:52]} 9. f4 {[%clk 0:02:44]}  cxd4 {[%clk 0:02:51]} 10. cxd4 {[%clk 0:02:45]}  b6 {[%clk 0:02:51]} 11. Qe2 {[%clk 0:02:41]}  a5 {[%clk 0:02:52]} 12. Ngf3 {[%clk 0:02:41]}  Ba6 {[%clk 0:02:52]} 13. O-O {[%clk 0:02:41]}  Bxd3 {[%clk 0:02:50]} 14. Qxd3 {[%clk 0:02:41]}  Nc6 {[%clk 0:02:51]} 15. a3 {[%clk 0:02:37]}  Rfc8 {[%clk 0:02:49]} 16. Ne5 {[%clk 0:02:36]}  Ne7 {[%clk 0:02:44]} 17. Rac1 {[%clk 0:02:34]}  h6 {[%clk 0:02:41]} 18. h3 {[%clk 0:02:33]}  Nf5 {[%clk 0:02:41]} 19. g4 {[%clk 0:02:31]}  Ng3 {[%clk 0:02:40]} 20. Rfd1 {[%clk 0:02:22]}  Nge4 {[%clk 0:02:33]} 21. Nxe4 {[%clk 0:02:20]}  Nxe4 {[%clk 0:02:33]} 22. Rc2 {[%clk 0:02:18]}  f6 {[%clk 0:02:26]} 23. Nf3 {[%clk 0:02:15]}  g5 {[%clk 0:02:20]} 24. Nd2 {[%clk 0:01:38]}  Rxc2 {[%clk 0:01:40]} 25. Qxc2 {[%clk 0:01:38]}  f5 {[%clk 0:01:39]} 26. Nxe4 {[%clk 0:01:34]}  dxe4 {[%clk 0:01:34]} 27. gxf5 {[%clk 0:01:28]}  exf5 {[%clk 0:01:33]} 28. Qc4+ {[%clk 0:01:15]}  Kg7 {[%clk 0:01:27]} 29. Rf1 {[%clk 0:01:09]}  Kg6 {[%clk 0:01:21]} 30. Kg2 {[%clk 0:00:58]}  Rd8 {[%clk 0:01:12]} 31. h4 {[%clk 0:00:54]}  Qd5 {[%clk 0:00:45]} 32. Qc7 {[%clk 0:00:46]}  Qd6 {[%clk 0:00:45]} 33. h5+ {[%clk 0:00:43]}  Kf6 {[%clk 0:00:27]} 34. Qh7 {[%clk 0:00:38]}  gxf4 {[%clk 0:00:15]} 35. Rxf4 {[%clk 0:00:38]}  Qe6 {[%clk 0:00:15]} 36. Qxh6+ {[%clk 0:00:30]}  Ke7 {[%clk 0:00:15]} 37. Qg5+ {[%clk 0:00:27]}  Kd6 {[%clk 0:00:15]} 38. Qxf5 {[%clk 0:00:25]}  Rg8+ {[%clk 0:00:15]} 39. Kf2 {[%clk 0:00:25]}  Qb3 {[%clk 0:00:14]} 40. Qe5+ {[%clk 0:00:20]}  Kc6 {[%clk 0:00:14]} 41. Qxe4+ {[%clk 0:00:18]}  Kb5 {[%clk 0:00:13]} 42. Qf5+ {[%clk 0:00:14]}  Ka6 {[%clk 0:00:12]} 43. h6 {[%clk 0:00:13]}  Qxb2+ {[%clk 0:00:12]} 44. Kf3 {[%clk 0:00:13]}  Qg2# {[%clk 0:00:12]} 0-1


[Site "https://www.chess.com"]

[Event "Titled Tuesday Blitz November 08 Late 2022"]
[White "Melkumyan, Hrant"]
[Black "Zakhartsov, Vladimir"]
[WhiteFideId "13302485"]
[BlackFideId "4145097"]
[WhiteElo "2604"]
[BlackElo "2525"]
[Result "1-0"]
[Round "10"]
[TimeControl "180+1"]
[Date "2022.11.08"]
[WhiteClock "0:00:39"]
[BlackClock "0:00:02"]

1. d4 {[%clk 0:03:00]}  Nf6 {[%clk 0:02:57]} 2. c4 {[%clk 0:03:01]}  e6 {[%clk 0:02:55]} 3. Bf4 {[%clk 0:03:01]}  c5 {[%clk 0:02:52]} 4. d5 {[%clk 0:03:01]}  Qb6 {[%clk 0:02:51]} 5. Nc3 {[%clk 0:02:24]}  Qxb2 {[%clk 0:02:39]} 6. Bd2 {[%clk 0:02:24]}  Qb6 {[%clk 0:02:37]} 7. e4 {[%clk 0:02:24]}  d6 {[%clk 0:02:37]} 8. Rb1 {[%clk 0:02:22]}  Qd8 {[%clk 0:02:37]} 9. f4 {[%clk 0:02:17]}  Be7 {[%clk 0:02:24]} 10. Nf3 {[%clk 0:02:17]}  O-O {[%clk 0:02:24]} 11. e5 {[%clk 0:02:12]}  Ne8 {[%clk 0:02:19]} 12. Bd3 {[%clk 0:02:11]}  Nc7 {[%clk 0:02:12]} 13. Qe2 {[%clk 0:01:59]}  Nd7 {[%clk 0:02:09]} 14. O-O {[%clk 0:01:56]}  Nb6 {[%clk 0:02:05]} 15. Rbd1 {[%clk 0:01:54]}  f5 {[%clk 0:01:49]} 16. exf6 {[%clk 0:01:42]}  Bxf6 {[%clk 0:01:49]} 17. Ng5 {[%clk 0:01:35]}  h6 {[%clk 0:00:35]} 18. Nh7 {[%clk 0:01:35]}  Bd4+ {[%clk 0:00:33]} 19. Kh1 {[%clk 0:01:34]}  Re8 {[%clk 0:00:33]} 20. Qh5 {[%clk 0:01:25]}  exd5 {[%clk 0:00:32]} 21. f5 {[%clk 0:01:20]}  Re5 {[%clk 0:00:18]} 22. f6 {[%clk 0:01:13]}  Be6 {[%clk 0:00:02]} 23. Qg6 {[%clk 0:01:00]}  Qd7 {[%clk 0:00:02]} 24. f7+ {[%clk 0:00:42]}  Bxf7 {[%clk 0:00:01]} 25. Nf6+ {[%clk 0:00:39]}  Kf8 {[%clk 0:00:02]} 26. Nxd7+ {[%clk 0:00:39]} 1-0


[Site "https://www.chess.com"]

[Event "Titled Tuesday Blitz November 08 Late 2022"]
[White "Moskvin, Anatoly"]
[Black "Preotu, Razvan"]
[WhiteFideId "24199990"]
[BlackFideId "2613280"]
[WhiteElo "2079"]
[BlackElo "2407"]
[Result "0-1"]
[Round "10"]
[TimeControl "180+1"]
[Date "2022.11.08"]
[WhiteClock "0:00:02"]
[BlackClock "0:00:31"]

1. e4 {[%clk 0:03:00]}  c5 {[%clk 0:02:59]} 2. Nf3 {[%clk 0:03:01]}  d6 {[%clk 0:02:59]} 3. d4 {[%clk 0:03:01]}  cxd4 {[%clk 0:03:00]} 4. Nxd4 {[%clk 0:03:02]}  Nf6 {[%clk 0:03:01]} 5. f3 {[%clk 0:03:02]}  e5 {[%clk 0:03:00]} 6. Bb5+ {[%clk 0:03:03]}  Nbd7 {[%clk 0:03:00]} 7. Ne2 {[%clk 0:03:02]}  d5 {[%clk 0:02:46]} 8. exd5 {[%clk 0:02:49]}  Bc5 {[%clk 0:02:46]} 9. Bxd7+ {[%clk 0:02:31]}  Bxd7 {[%clk 0:02:45]} 10. Nbc3 {[%clk 0:02:10]}  O-O {[%clk 0:02:43]} 11. Bg5 {[%clk 0:02:10]}  Qb6 {[%clk 0:02:42]} 12. Bxf6 {[%clk 0:02:06]}  gxf6 {[%clk 0:02:43]} 13. Ne4 {[%clk 0:01:48]}  Be3 {[%clk 0:02:25]} 14. Qd3 {[%clk 0:01:47]}  Bh6 {[%clk 0:02:19]} 15. Qb3 {[%clk 0:01:29]}  Qa6 {[%clk 0:01:48]} 16. Nc5 {[%clk 0:01:17]}  Qa5+ {[%clk 0:01:48]} 17. Qc3 {[%clk 0:01:16]}  Qxc3+ {[%clk 0:01:30]} 18. Nxc3 {[%clk 0:01:17]}  Bf5 {[%clk 0:01:30]} 19. N5e4 {[%clk 0:01:13]}  Kg7 {[%clk 0:01:28]} 20. g4 {[%clk 0:01:09]}  Bg6 {[%clk 0:01:17]} 21. h4 {[%clk 0:01:03]}  f5 {[%clk 0:01:17]} 22. g5 {[%clk 0:00:33]}  fxe4 {[%clk 0:01:17]} 23. gxh6+ {[%clk 0:00:34]}  Kxh6 {[%clk 0:01:18]} 24. h5 {[%clk 0:00:31]}  Bf5 {[%clk 0:01:06]} 25. fxe4 {[%clk 0:00:31]}  Bg4 {[%clk 0:01:06]} 26. Kd2 {[%clk 0:00:24]}  f5 {[%clk 0:01:07]} 27. Rag1 {[%clk 0:00:24]}  Bf3 {[%clk 0:01:07]} 28. Rh3 {[%clk 0:00:19]}  fxe4 {[%clk 0:01:04]} 29. Ke3 {[%clk 0:00:19]}  Rac8 {[%clk 0:00:48]} 30. Rhg3 {[%clk 0:00:15]}  b5 {[%clk 0:00:46]} 31. Rg7 {[%clk 0:00:04]}  b4 {[%clk 0:00:45]} 32. Nxe4 {[%clk 0:00:04]}  Rxc2 {[%clk 0:00:37]} 33. Nd6 {[%clk 0:00:02]}  Bxd5 {[%clk 0:00:31]} 34. Kd3 {[%clk 0:00:01]}  Rxb2 {[%clk 0:00:31]} 35. Re7 {[%clk 0:00:02]}  Rf3# {[%clk 0:00:31]} 0-1


[Site "https://www.chess.com"]

[Event "Titled Tuesday Blitz November 08 Late 2022"]
[White "Musovic, Armin"]
[Black "Kanakaris, Georgios"]
[WhiteFideId "939935"]
[BlackFideId "4209460"]
[WhiteElo "2288"]
[BlackElo "2291"]
[Result "1-0"]
[Round "10"]
[TimeControl "180+1"]
[Date "2022.11.09"]
[WhiteClock "0:01:25"]
[BlackClock "0:00:01"]

1. e4 {[%clk 0:03:00]}  e6 {[%clk 0:03:00]} 2. d4 {[%clk 0:02:59]}  d5 {[%clk 0:03:00]} 3. Nd2 {[%clk 0:02:59]}  Be7 {[%clk 0:03:00]} 4. Ngf3 {[%clk 0:02:59]}  Nf6 {[%clk 0:03:01]} 5. e5 {[%clk 0:02:59]}  Nfd7 {[%clk 0:03:01]} 6. c3 {[%clk 0:03:00]}  c5 {[%clk 0:03:02]} 7. Nb3 {[%clk 0:03:01]}  Nc6 {[%clk 0:03:00]} 8. Be2 {[%clk 0:03:01]}  a5 {[%clk 0:03:00]} 9. a4 {[%clk 0:03:01]}  Qb6 {[%clk 0:02:59]} 10. O-O {[%clk 0:03:01]}  O-O {[%clk 0:02:53]} 11. Kh1 {[%clk 0:03:01]}  cxd4 {[%clk 0:02:49]} 12. cxd4 {[%clk 0:03:00]}  f6 {[%clk 0:02:50]} 13. exf6 {[%clk 0:02:59]}  Nxf6 {[%clk 0:02:48]} 14. h3 {[%clk 0:02:57]}  Ne4 {[%clk 0:02:48]} 15. Be3 {[%clk 0:02:55]}  Bd7 {[%clk 0:02:44]} 16. Rc1 {[%clk 0:02:54]}  Be8 {[%clk 0:02:42]} 17. Nc5 {[%clk 0:02:53]}  Nxc5 {[%clk 0:02:40]} 18. dxc5 {[%clk 0:02:54]}  Qxb2 {[%clk 0:02:39]} 19. Rb1 {[%clk 0:02:55]}  Qf6 {[%clk 0:02:36]} 20. Rxb7 {[%clk 0:02:54]}  h6 {[%clk 0:02:16]} 21. Bb5 {[%clk 0:02:50]}  Nd8 {[%clk 0:00:52]} 22. Rc7 {[%clk 0:02:29]}  Nf7 {[%clk 0:00:33]} 23. Re1 {[%clk 0:02:18]}  Bd8 {[%clk 0:00:26]} 24. Bd4 {[%clk 0:02:18]}  Qf5 {[%clk 0:00:21]} 25. Rb7 {[%clk 0:02:16]}  Rc8 {[%clk 0:00:18]} 26. Ne5 {[%clk 0:02:06]}  Bc7 {[%clk 0:00:17]} 27. Bxe8 {[%clk 0:02:02]}  Rfxe8 {[%clk 0:00:15]} 28. Nxf7 {[%clk 0:02:02]}  Qxf7 {[%clk 0:00:13]} 29. Be5 {[%clk 0:02:00]}  Re7 {[%clk 0:00:13]} 30. Bxc7 {[%clk 0:01:50]}  Rexc7 {[%clk 0:00:14]} 31. Rxc7 {[%clk 0:01:49]}  Qxc7 {[%clk 0:00:13]} 32. Rxe6 {[%clk 0:01:47]}  Qxc5 {[%clk 0:00:13]} 33. Qg4 {[%clk 0:01:43]}  Qxf2 {[%clk 0:00:11]} 34. Kh2 {[%clk 0:01:39]}  Rf8 {[%clk 0:00:09]} 35. Rxh6 {[%clk 0:01:36]}  Qf4+ {[%clk 0:00:09]} 36. Qxf4 {[%clk 0:01:36]}  Rxf4 {[%clk 0:00:10]} 37. Rd6 {[%clk 0:01:36]}  Rd4 {[%clk 0:00:09]} 38. Kg3 {[%clk 0:01:34]}  Kf7 {[%clk 0:00:10]} 39. h4 {[%clk 0:01:34]}  Ke7 {[%clk 0:00:10]} 40. Rg6 {[%clk 0:01:34]}  Kf7 {[%clk 0:00:09]} 41. Rd6 {[%clk 0:01:32]}  Ke7 {[%clk 0:00:07]} 42. Rg6 {[%clk 0:01:32]}  Rxa4 {[%clk 0:00:07]} 43. Rxg7+ {[%clk 0:01:32]}  Kf6 {[%clk 0:00:07]} 44. Ra7 {[%clk 0:01:31]}  Ra3+ {[%clk 0:00:07]} 45. Kf4 {[%clk 0:01:31]}  Ra4+ {[%clk 0:00:07]} 46. Kg3 {[%clk 0:01:30]}  d4 {[%clk 0:00:07]} 47. Kf4 {[%clk 0:01:31]}  d3+ {[%clk 0:00:05]} 48. Ke3 {[%clk 0:01:31]}  Ra3 {[%clk 0:00:06]} 49. g4 {[%clk 0:01:29]}  a4 {[%clk 0:00:04]} 50. Ra6+ {[%clk 0:01:27]}  Ke5 {[%clk 0:00:04]} 51. Ra5+ {[%clk 0:01:27]}  Kf6 {[%clk 0:00:04]} 52. h5 {[%clk 0:01:26]}  d2+ {[%clk 0:00:03]} 53. Kxd2 {[%clk 0:01:26]}  Rg3 {[%clk 0:00:02]} 54. Rxa4 {[%clk 0:01:26]}  Kg5 {[%clk 0:00:02]} 55. Ke2 {[%clk 0:01:26]}  Rg1 {[%clk 0:00:02]} 56. Kf2 {[%clk 0:01:26]}  Rb1 {[%clk 0:00:02]} 57. Re4 {[%clk 0:01:25]}  Rb2+ {[%clk 0:00:02]} 58. Kf3 {[%clk 0:01:26]}  Rb1 {[%clk 0:00:01]} 59. Re5+ {[%clk 0:01:25]}  Kh6 {[%clk 0:00:01]} 60. Re6+ {[%clk 0:01:25]}  Kg5 {[%clk 0:00:01]} 61. Rg6+ {[%clk 0:01:25]}  Kh4 {[%clk 0:00:01]} 62. h6 {[%clk 0:01:25]} 1-0


[Site "https://www.chess.com"]